[Event "*** Titled Tuesday 3|2 Blitz"]
[Site "Chess.com"]
[Date "2016.06.07"]
[Round "1"]
[White "Abdodi"]
[Black "Abrito99"]
[Result "0-1"]
[WhiteElo "2003"]
[BlackElo "2407"]
[TimeControl "180+2"]
[EndTime "11:08:41 PDT"]
[Termination "Abrito99 won by checkmate"]

1. d3 {[%clk 0:02:56.8]} 1... Nf6 {[%clk 0:03:00.2]} 2. g3 {[%clk 0:02:57.2]}
2... g6 {[%clk 0:03:00.7]} 3. Bg2 {[%clk 0:02:57.9]} 3... Bg7 {[%clk 0:03:02.2]}
4. Nf3 {[%clk 0:02:58.7]} 4... d6 {[%clk 0:03:03.4]} 5. O-O {[%clk 0:02:59.4]}
5... O-O {[%clk 0:03:04.4]} 6. c3 {[%clk 0:03:00.1]} 6... c5 {[%clk 0:03:04.1]}
7. Na3 {[%clk 0:02:59.7]} 7... Nc6 {[%clk 0:03:04.8]} 8. Nc4 {[%clk 0:02:59.9]}
8... Rb8 {[%clk 0:02:59]} 9. a4 {[%clk 0:02:59.8]} 9... b6 {[%clk 0:02:53.5]}
10. e4 {[%clk 0:02:56.9]} 10... Qc7 {[%clk 0:02:43.1]} 11. Bg5 {[%clk
0:02:51.9]} 11... a6 {[%clk 0:02:36.5]} 12. Qd2 {[%clk 0:02:49.6]} 12... Rd8
{[%clk 0:02:35]} 13. Ne3 {[%clk 0:02:43.2]} 13... b5 {[%clk 0:02:33.5]} 14. Bxf6
{[%clk 0:02:42.9]} 14... exf6 {[%clk 0:02:30.7]} 15. Nd5 {[%clk 0:02:39.8]}
15... Qd7 {[%clk 0:02:30.6]} 16. axb5 {[%clk 0:02:31.5]} 16... axb5 {[%clk
0:02:31.8]} 17. Qf4 {[%clk 0:02:32.2]} 17... f5 {[%clk 0:02:22.7]} 18. Bh3
{[%clk 0:02:30.2]} 18... Ne5 {[%clk 0:02:02.4]} 19. exf5 {[%clk 0:02:18.9]}
19... Bb7 {[%clk 0:01:35.7]} 20. Nxe5 {[%clk 0:01:47.2]} 20... dxe5 {[%clk
0:01:36.3]} 21. fxg6 {[%clk 0:01:16.9]} 21... Qxd5 {[%clk 0:00:43.4]} 22. gxh7+
{[%clk 0:01:14.5]} 22... Kh8 {[%clk 0:00:44.5]} 23. Qe4 {[%clk 0:01:11.3]} 23...
Qd6 {[%clk 0:00:44.4]} 24. Qe3 {[%clk 0:01:01.5]} 24... Bh6 {[%clk 0:00:42.6]}
25. Qe2 {[%clk 0:00:53.1]} 25... Qxd3 {[%clk 0:00:32.9]} 26. Qxe5+ {[%clk
0:00:51.4]} 26... Bg7 {[%clk 0:00:34.4]} 27. Qf4 {[%clk 0:00:42.5]} 27... b4
{[%clk 0:00:26.1]} 28. Rad1 {[%clk 0:00:21.5]} 28... Qxd1 {[%clk 0:00:26.5]} 29.
Rxd1 {[%clk 0:00:19.6]} 29... Rxd1+ {[%clk 0:00:27.6]} 30. Bf1 {[%clk
0:00:21.3]} 30... Rbd8 {[%clk 0:00:25.8]} 31. Qc4 {[%clk 0:00:19]} 31... bxc3
{[%clk 0:00:22.1]} 32. bxc3 {[%clk 0:00:19.5]} 32... Rc1 {[%clk 0:00:22.8]} 33.
Qb5 {[%clk 0:00:15.6]} 33... Be4 {[%clk 0:00:20.3]} 34. f3 {[%clk 0:00:15.7]}
34... Bd3 {[%clk 0:00:20.6]} 35. Qb6 {[%clk 0:00:13.8]} 35... Rxf1+ {[%clk
0:00:20.7]} 36. Kg2 {[%clk 0:00:14.4]} 36... Re8 {[%clk 0:00:21.6]} 37. Qxc5
{[%clk 0:00:15]} 37... Rd1 {[%clk 0:00:20.5]} 38. Qc6 {[%clk 0:00:14.4]} 38...
Bf1+ {[%clk 0:00:19.8]} 39. Kf2 {[%clk 0:00:12.2]} 39... Re2+ {[%clk 0:00:19.7]}
40. Kg1 {[%clk 0:00:13.6]} 40... Bh3# {[%clk 0:00:20.9]} 0-1

[Event "*** Titled Tuesday 3|2 Blitz"]
[Site "Chess.com"]
[Date "2016.06.07"]
[Round "1"]
[White "OldweakGM"]
[Black "GianmarcoVaR"]
[Result "1-0"]
[WhiteElo "2602"]
[BlackElo "2330"]
[TimeControl "180+2"]
[EndTime "11:08:51 PDT"]
[Termination "OldweakGM won by resignation"]

1. Nf3 {[%clk 0:02:20.4]} 1... Nf6 {[%clk 0:02:58.2]} 2. c4 {[%clk 0:02:20.5]}
2... b6 {[%clk 0:02:57.6]} 3. d4 {[%clk 0:02:20.5]} 3... Bb7 {[%clk 0:02:59.5]}
4. Nc3 {[%clk 0:02:21.4]} 4... e6 {[%clk 0:02:58.7]} 5. a3 {[%clk 0:02:22.6]}
5... d5 {[%clk 0:02:59.9]} 6. Bg5 {[%clk 0:02:23.1]} 6... Be7 {[%clk 0:02:56.8]}
7. Qa4+ {[%clk 0:02:24]} 7... Qd7 {[%clk 0:02:48.2]} 8. Qc2 {[%clk 0:02:23.5]}
8... O-O {[%clk 0:02:46.6]} 9. e3 {[%clk 0:02:24.1]} 9... h6 {[%clk 0:02:44.9]}
10. Bxf6 {[%clk 0:02:21.8]} 10... Bxf6 {[%clk 0:02:45.3]} 11. cxd5 {[%clk
0:02:23]} 11... exd5 {[%clk 0:02:46.1]} 12. Bd3 {[%clk 0:02:18.8]} 12... Re8
{[%clk 0:02:40.2]} 13. O-O {[%clk 0:02:15.4]} 13... Ba6 {[%clk 0:02:30.6]} 14.
Bh7+ {[%clk 0:02:05.6]} 14... Kh8 {[%clk 0:02:29.4]} 15. Bf5 {[%clk 0:02:06.7]}
15... Qd6 {[%clk 0:02:28]} 16. Rfe1 {[%clk 0:02:07.2]} 16... g6 {[%clk
0:02:17.7]} 17. Bd3 {[%clk 0:02:07.2]} 17... Bg7 {[%clk 0:01:55.9]} 18. Bxa6
{[%clk 0:02:05.3]} 18... Nxa6 {[%clk 0:01:56.9]} 19. Qa4 {[%clk 0:02:06.1]}
19... b5 {[%clk 0:01:58]} 20. Qxb5 {[%clk 0:02:02.1]} 20... Rab8 {[%clk
0:01:52.2]} 21. Qxd5 {[%clk 0:02:03.2]} 21... Qxd5 {[%clk 0:01:49.7]} 22. Nxd5
{[%clk 0:02:04.1]} 22... Rxb2 {[%clk 0:01:51.6]} 23. Rac1 {[%clk 0:02:03.7]}
23... c5 {[%clk 0:01:35.8]} 24. dxc5 {[%clk 0:02:02.7]} 24... Rb5 {[%clk
0:01:37.4]} 25. g3 {[%clk 0:01:38.7]} 25... Rd8 {[%clk 0:01:30]} 26. Nc3 {[%clk
0:01:26.9]} 26... Rxc5 {[%clk 0:01:27.8]} 27. Ne4 {[%clk 0:01:27.7]} 27... Ra5
{[%clk 0:01:26.9]} 28. Red1 {[%clk 0:01:27.2]} 28... Rxd1+ {[%clk 0:01:24.2]}
29. Rxd1 {[%clk 0:01:28.5]} 29... Rxa3 {[%clk 0:01:25.8]} 30. Rd8+ {[%clk
0:01:27.2]} 30... Kh7 {[%clk 0:01:24.9]} 31. Rd7 {[%clk 0:01:28.8]} 31... Kg8
{[%clk 0:01:19]} 32. Rxa7 {[%clk 0:01:29.4]} 32... Ra1+ {[%clk 0:01:19.7]} 33.
Kg2 {[%clk 0:01:30.7]} 33... Nb4 {[%clk 0:01:21.2]} 34. Rxa1 {[%clk 0:01:31.5]}
34... Bxa1 {[%clk 0:01:21.4]} 35. Nfd2 {[%clk 0:01:32.3]} 35... Bg7 {[%clk
0:01:21.2]} 36. Kf3 {[%clk 0:01:32.6]} 36... Nd3 {[%clk 0:01:21.4]} 37. Ke2
{[%clk 0:01:33.6]} 37... Nb4 {[%clk 0:01:21.5]} 38. g4 {[%clk 0:01:33.8]} 38...
Nd5 {[%clk 0:01:20.8]} 39. h4 {[%clk 0:01:34.8]} 39... Ne7 {[%clk 0:01:20.2]}
40. Ng3 {[%clk 0:01:35.4]} 40... Bf6 {[%clk 0:01:20.2]} 41. h5 {[%clk
0:01:36.5]} 41... Kg7 {[%clk 0:01:21.1]} 42. f4 {[%clk 0:01:36.4]} 42... Bc3
{[%clk 0:01:19.8]} 43. Nde4 {[%clk 0:01:37.2]} 43... Bb2 {[%clk 0:01:20.6]} 44.
hxg6 {[%clk 0:01:38.1]} 44... fxg6 {[%clk 0:01:21.9]} 45. Kf3 {[%clk 0:01:39.5]}
45... Ba1 {[%clk 0:01:22.1]} 46. Nc5 {[%clk 0:01:40.7]} 46... Bb2 {[%clk
0:01:22.5]} 47. e4 {[%clk 0:01:41.7]} 47... Ba1 {[%clk 0:01:23.5]} 48. e5 {[%clk
0:01:42.2]} 48... Bb2 {[%clk 0:01:24]} 49. Nd3 {[%clk 0:01:43]} 49... Ba1 {[%clk
0:01:24]} 50. Ke4 {[%clk 0:01:44.2]} 50... Kf7 {[%clk 0:01:17.8]} 51. f5 {[%clk
0:01:42.1]} 51... gxf5+ {[%clk 0:01:17.7]} 52. Nxf5 {[%clk 0:01:43.5]} 52... Ng6
{[%clk 0:01:14.2]} 53. Nxh6+ {[%clk 0:01:43.8]} 53... Ke6 {[%clk 0:01:14.9]} 54.
Nc5+ {[%clk 0:01:43.4]} 54... Ke7 {[%clk 0:01:16.2]} 55. Nf5+ {[%clk 0:01:44.3]}
55... Kf7 {[%clk 0:01:16.5]} 56. Nd3 {[%clk 0:01:43.3]} 56... Ke6 {[%clk
0:01:15.5]} 57. Nd4+ {[%clk 0:01:44.6]} 57... Ke7 {[%clk 0:01:07.8]} 58. Nf3
{[%clk 0:01:42.1]} 58... Ke6 {[%clk 0:01:06.6]} 59. Nf4+ {[%clk 0:01:39.6]}
59... Nxf4 {[%clk 0:01:06.4]} 60. Kxf4 {[%clk 0:01:41]} 60... Bb2 {[%clk
0:01:06.9]} 61. Ke4 {[%clk 0:01:41.4]} 61... Ba1 {[%clk 0:01:04.9]} 62. g5
{[%clk 0:01:42.8]} 62... Bb2 {[%clk 0:01:03.4]} 63. g6 {[%clk 0:01:44]} 63...
Ke7 {[%clk 0:01:01.8]} 64. Kf5 {[%clk 0:01:44.8]} 64... Bc1 {[%clk 0:01:00.6]}
65. Nd4 {[%clk 0:01:44.8]} 65... Bh6 {[%clk 0:00:59]} 66. Ke4 {[%clk 0:01:44.7]}
66... Bg5 {[%clk 0:00:54.1]} 67. Nf5+ {[%clk 0:01:44.8]} 67... Ke8 {[%clk
0:00:54]} 68. e6 {[%clk 0:01:45.5]} 68... Bf6 {[%clk 0:00:54.4]} 69. g7 {[%clk
0:01:43.9]} 69... Bxg7 {[%clk 0:00:54]} 70. Nxg7+ {[%clk 0:01:45]} 70... Kf8
{[%clk 0:00:55.8]} 71. Nf5 {[%clk 0:01:44.6]} 1-0

[Event "*** Titled Tuesday 3|2 Blitz"]
[Site "Chess.com"]
[Date "2016.06.07"]
[Round "1"]
[White "VSERGUEI"]
[Black "alturas_pacificas"]
[Result "1/2-1/2"]
[WhiteElo "2495"]
[BlackElo "2171"]
[TimeControl "180+2"]
[EndTime "11:09:03 PDT"]
[Termination "Game drawn by repetition"]

1. d4 {[%clk 0:03:01.9]} 1... d5 {[%clk 0:02:56.2]} 2. c4 {[%clk 0:03:02.2]}
2... c6 {[%clk 0:02:53]} 3. cxd5 {[%clk 0:03:03.1]} 3... cxd5 {[%clk 0:02:53.9]}
4. Bf4 {[%clk 0:03:03.5]} 4... Nc6 {[%clk 0:02:55.1]} 5. e3 {[%clk 0:03:04]}
5... Nf6 {[%clk 0:02:56.7]} 6. Nc3 {[%clk 0:03:04.8]} 6... e6 {[%clk 0:02:58.2]}
7. Bd3 {[%clk 0:03:04.6]} 7... Bd6 {[%clk 0:02:59.6]} 8. Bxd6 {[%clk 0:03:05.2]}
8... Qxd6 {[%clk 0:03:00.7]} 9. f4 {[%clk 0:03:06.3]} 9... a6 {[%clk 0:03:01]}
10. Nf3 {[%clk 0:03:07.2]} 10... b5 {[%clk 0:03:02]} 11. O-O {[%clk 0:03:06.4]}
11... Bb7 {[%clk 0:03:03.1]} 12. Ne5 {[%clk 0:03:07.5]} 12... Rc8 {[%clk
0:02:58.8]} 13. Qf3 {[%clk 0:02:58]} 13... Na5 {[%clk 0:02:36.8]} 14. Rae1
{[%clk 0:02:53.8]} 14... b4 {[%clk 0:02:35.3]} 15. Na4 {[%clk 0:02:51.8]} 15...
Ne4 {[%clk 0:02:33.5]} 16. Qh3 {[%clk 0:02:45.1]} 16... Nc4 {[%clk 0:01:38.2]}
17. Bxe4 {[%clk 0:02:31]} 17... dxe4 {[%clk 0:01:38.3]} 18. Nc5 {[%clk
0:02:30.7]} 18... Bd5 {[%clk 0:01:38.1]} 19. Nxc4 {[%clk 0:02:12]} 19... Bxc4
{[%clk 0:01:35.3]} 20. Rc1 {[%clk 0:01:55.7]} 20... Bxf1 {[%clk 0:01:12.1]} 21.
Nxe4 {[%clk 0:01:55.5]} 21... Rxc1 {[%clk 0:01:13.6]} 22. Nxd6+ {[%clk
0:01:56.1]} 22... Kd7 {[%clk 0:01:15.1]} 23. Nxf7 {[%clk 0:01:54]} 23... Rhc8
{[%clk 0:01:09.3]} 24. d5 {[%clk 0:01:43.3]} 24... Bc4+ {[%clk 0:00:56.6]} 25.
Kf2 {[%clk 0:01:43]} 25... Bxd5 {[%clk 0:00:58.2]} 26. Ne5+ {[%clk 0:01:41.2]}
26... Kd6 {[%clk 0:00:58.7]} 27. Nf3 {[%clk 0:01:19.5]} 27... R8c2+ {[%clk
0:00:45.4]} 28. Kg3 {[%clk 0:01:19.8]} 28... Bxf3 {[%clk 0:00:31.7]} 29. Kxf3
{[%clk 0:01:18.6]} 29... Rxb2 {[%clk 0:00:24.3]} 30. Qh4 {[%clk 0:01:10.7]}
30... Rcc2 {[%clk 0:00:21.4]} 31. Qd8+ {[%clk 0:01:07.1]} 31... Kc6 {[%clk
0:00:23]} 32. Qc8+ {[%clk 0:01:02.8]} 32... Kb6 {[%clk 0:00:24.1]} 33. Qxe6+
{[%clk 0:01:02.6]} 33... Ka5 {[%clk 0:00:25.6]} 34. Qe5+ {[%clk 0:00:39.6]}
34... Ka4 {[%clk 0:00:25.8]} 35. Qe8+ {[%clk 0:00:36.2]} 35... Ka3 {[%clk
0:00:22.7]} 36. Qa8 {[%clk 0:00:36.8]} 36... Rxa2 {[%clk 0:00:22.7]} 37. Qxa6+
{[%clk 0:00:37.2]} 37... Kb2 {[%clk 0:00:22.6]} 38. Qb7 {[%clk 0:00:37]} 38...
b3 {[%clk 0:00:23.7]} 39. Qxg7+ {[%clk 0:00:37.9]} 39... Kb1 {[%clk 0:00:24.2]}
40. Qxh7 {[%clk 0:00:38.5]} 40... b2 {[%clk 0:00:20.9]} 41. Qd3 {[%clk
0:00:32.8]} 41... Ra7 {[%clk 0:00:19.3]} 42. f5 {[%clk 0:00:32]} 42... Rc7
{[%clk 0:00:19.9]} 43. g4 {[%clk 0:00:30.6]} 43... Ka2 {[%clk 0:00:19.5]} 44.
Qd5+ {[%clk 0:00:29.5]} 44... Ka3 {[%clk 0:00:19.2]} 45. Qa5+ {[%clk 0:00:28.1]}
45... Kb3 {[%clk 0:00:20.2]} 46. Qb6+ {[%clk 0:00:27.1]} 46... Ka3 {[%clk
0:00:21.2]} 47. Qa5+ {[%clk 0:00:27.8]} 47... Kb3 {[%clk 0:00:22.4]} 48. Qb6+
{[%clk 0:00:28.7]} 48... Ka3 {[%clk 0:00:23.6]} 49. Qa5+ {[%clk 0:00:29.7]}
49... Kb3 {[%clk 0:00:24.9]} 50. Qb6+ {[%clk 0:00:30.9]} 50... Ka3 {[%clk
0:00:25.9]} 1/2-1/2

[Event "*** Titled Tuesday 3|2 Blitz"]
[Site "Chess.com"]
[Date "2016.06.07"]
[Round "1"]
[White "Cruel_Yaro"]
[Black "annakantane"]
[Result "1-0"]
[WhiteElo "2552"]
[BlackElo "2189"]
[TimeControl "180+2"]
[EndTime "11:09:04 PDT"]
[Termination "Cruel_Yaro won by resignation"]

1. d4 {[%clk 0:02:43.7]} 1... Nf6 {[%clk 0:03:00.5]} 2. c4 {[%clk 0:02:45.6]}
2... c5 {[%clk 0:03:00.9]} 3. d5 {[%clk 0:02:46.4]} 3... e6 {[%clk 0:03:01.6]}
4. Nc3 {[%clk 0:02:47.6]} 4... exd5 {[%clk 0:03:02.7]} 5. cxd5 {[%clk
0:02:49.5]} 5... d6 {[%clk 0:03:03.6]} 6. Nf3 {[%clk 0:02:50.9]} 6... g6 {[%clk
0:03:04.4]} 7. Bf4 {[%clk 0:02:51.5]} 7... a6 {[%clk 0:03:03.2]} 8. a4 {[%clk
0:02:52.1]} 8... Bg7 {[%clk 0:03:03.6]} 9. e3 {[%clk 0:02:52.6]} 9... O-O {[%clk
0:03:03.6]} 10. h3 {[%clk 0:02:53.7]} 10... Re8 {[%clk 0:03:00.3]} 11. Bd3
{[%clk 0:02:48.6]} 11... Nbd7 {[%clk 0:02:58.4]} 12. O-O {[%clk 0:02:47.7]}
12... Nh5 {[%clk 0:02:52.8]} 13. Bxd6 {[%clk 0:02:47.7]} 13... Qb6 {[%clk
0:02:52.5]} 14. Bh2 {[%clk 0:02:36.7]} 14... Qxb2 {[%clk 0:02:50.8]} 15. Ne4
{[%clk 0:02:31]} 15... Qxa1 {[%clk 0:02:38.9]} 16. Qxa1 {[%clk 0:02:31.7]} 16...
Bxa1 {[%clk 0:02:40.2]} 17. Rxa1 {[%clk 0:02:33.2]} 17... Ndf6 {[%clk
0:02:31.1]} 18. Nd6 {[%clk 0:02:24.6]} 18... Rd8 {[%clk 0:02:31.5]} 19. e4
{[%clk 0:02:19.2]} 19... b6 {[%clk 0:02:14.3]} 20. g4 {[%clk 0:02:03.2]} 20...
Ng7 {[%clk 0:02:10.6]} 21. Nc4 {[%clk 0:02:02.8]} 21... Nd7 {[%clk 0:01:47.3]}
22. Bc7 {[%clk 0:02:02]} 22... Re8 {[%clk 0:01:47.6]} 23. Bxb6 {[%clk
0:01:50.1]} 23... Rb8 {[%clk 0:01:40.8]} 24. a5 {[%clk 0:01:49]} 24... Bb7
{[%clk 0:01:39.5]} 25. Bc7 {[%clk 0:01:43.4]} 25... Rbc8 {[%clk 0:01:34.1]} 26.
Bg3 {[%clk 0:01:23.6]} 26... f5 {[%clk 0:01:34.3]} 27. gxf5 {[%clk 0:00:51.1]}
27... gxf5 {[%clk 0:01:34.9]} 28. exf5 {[%clk 0:00:30.8]} 28... Bxd5 {[%clk
0:01:33.9]} 29. Nfd2 {[%clk 0:00:26.3]} 29... Rf8 {[%clk 0:01:29.3]} 30. Nd6
{[%clk 0:00:26.1]} 30... Rb8 {[%clk 0:01:21.3]} 31. N2c4 {[%clk 0:00:19.6]}
31... Rb3 {[%clk 0:01:19.2]} 32. Rd1 {[%clk 0:00:19.6]} 32... Bc6 {[%clk
0:01:10.4]} 33. Bc2 {[%clk 0:00:18.5]} 33... Rc3 {[%clk 0:01:09.6]} 34. Bb1
{[%clk 0:00:19.2]} 34... Bb5 {[%clk 0:01:03.6]} 35. Ne3 {[%clk 0:00:19.6]} 35...
Nh5 {[%clk 0:00:39.2]} 36. Ba2+ {[%clk 0:00:18.1]} 36... Kh8 {[%clk 0:00:33.1]}
37. Bh2 {[%clk 0:00:19]} 37... Nhf6 {[%clk 0:00:26]} 38. Be6 {[%clk 0:00:18.2]}
38... Ra3 {[%clk 0:00:15.3]} 39. Nxb5 {[%clk 0:00:17.6]} 39... axb5 {[%clk
0:00:16.3]} 40. Bxd7 {[%clk 0:00:18.7]} 40... Nxd7 {[%clk 0:00:16.1]} 41. Rxd7
{[%clk 0:00:19]} 41... c4 {[%clk 0:00:15.9]} 42. Be5+ {[%clk 0:00:19.3]} 42...
Kg8 {[%clk 0:00:17.3]} 43. Rg7+ {[%clk 0:00:20.2]} 43... Kh8 {[%clk 0:00:18.6]}
44. Rg5+ {[%clk 0:00:21]} 1-0

[Event "*** Titled Tuesday 3|2 Blitz"]
[Site "Chess.com"]
[Date "2016.06.07"]
[Round "1"]
[White "Er_is_geen_hoop_meer"]
[Black "1stSecond"]
[Result "0-1"]
[WhiteElo "2329"]
[BlackElo "2569"]
[TimeControl "180+2"]
[EndTime "11:10:14 PDT"]
[Termination "1stSecond won by resignation"]

1. b4 {[%clk 0:03:00]} 1... Nf6 {[%clk 0:03:00.2]} 2. Bb2 {[%clk 0:03:00.3]}
2... d6 {[%clk 0:03:01.3]} 3. d4 {[%clk 0:02:59.7]} 3... Nbd7 {[%clk 0:03:01.7]}
4. c4 {[%clk 0:03:00.6]} 4... g6 {[%clk 0:03:03.4]} 5. Nf3 {[%clk 0:03:01.4]}
5... Bg7 {[%clk 0:03:05.1]} 6. g3 {[%clk 0:03:01.4]} 6... O-O {[%clk 0:03:06.7]}
7. Bg2 {[%clk 0:03:02.5]} 7... Nb6 {[%clk 0:03:06.5]} 8. Nbd2 {[%clk 0:03:02.4]}
8... a5 {[%clk 0:03:04.9]} 9. b5 {[%clk 0:03:03.1]} 9... c6 {[%clk 0:02:59.5]}
10. a4 {[%clk 0:03:03.5]} 10... Be6 {[%clk 0:02:47.9]} 11. Rc1 {[%clk
0:03:01.7]} 11... c5 {[%clk 0:02:37.3]} 12. d5 {[%clk 0:02:55.7]} 12... Bf5
{[%clk 0:02:37.2]} 13. O-O {[%clk 0:02:55.4]} 13... Qc8 {[%clk 0:02:36.4]} 14.
Re1 {[%clk 0:02:55.1]} 14... Bh3 {[%clk 0:02:36.9]} 15. Bh1 {[%clk 0:02:55.8]}
15... h6 {[%clk 0:02:38]} 16. e4 {[%clk 0:02:54.2]} 16... e5 {[%clk 0:02:39.2]}
17. dxe6 {[%clk 0:02:52.9]} 17... Bxe6 {[%clk 0:02:38.7]} 18. Qb3 {[%clk
0:02:46]} 18... Rd8 {[%clk 0:02:38.8]} 19. Rcd1 {[%clk 0:02:45.7]} 19... Qc7
{[%clk 0:02:39.1]} 20. e5 {[%clk 0:02:46]} 20... dxe5 {[%clk 0:02:37.3]} 21.
Bxe5 {[%clk 0:02:47.9]} 21... Qe7 {[%clk 0:02:36.3]} 22. Bf4 {[%clk 0:02:47.7]}
22... g5 {[%clk 0:02:34.5]} 23. Be5 {[%clk 0:02:46.7]} 23... Rd7 {[%clk
0:02:30.8]} 24. Bc3 {[%clk 0:02:38.6]} 24... Qd8 {[%clk 0:02:27.8]} 25. Ne5
{[%clk 0:02:36.1]} 25... Rd6 {[%clk 0:02:28.4]} 26. Ne4 {[%clk 0:02:32]} 26...
Nxe4 {[%clk 0:02:26.8]} 27. Bxe4 {[%clk 0:02:33.9]} 27... Rxd1 {[%clk
0:02:25.3]} 28. Rxd1 {[%clk 0:02:35.8]} 28... Qc7 {[%clk 0:02:26.5]} 29. f4
{[%clk 0:02:33.9]} 29... Re8 {[%clk 0:02:19.6]} 30. Bxa5 {[%clk 0:02:27.4]}
30... Bxe5 {[%clk 0:02:16.8]} 31. Bxb6 {[%clk 0:02:16.9]} 31... Bd4+ {[%clk
0:01:46.3]} 32. Rxd4 {[%clk 0:02:17.3]} 32... Qxb6 {[%clk 0:01:48]} 33. Rd2
{[%clk 0:02:18.6]} 33... Qa5 {[%clk 0:01:45.6]} 34. Qc2 {[%clk 0:02:09.7]} 34...
Bxc4 {[%clk 0:01:42.3]} 35. fxg5 {[%clk 0:02:01.8]} 35... hxg5 {[%clk
0:01:43.2]} 36. Rd1 {[%clk 0:01:50.6]} 36... Qb4 {[%clk 0:01:31.6]} 37. Bxb7
{[%clk 0:01:46.7]} 37... Bb3 {[%clk 0:01:30.7]} 38. Qf5 {[%clk 0:01:36.6]} 38...
Bxd1 {[%clk 0:01:23.3]} 39. Qxg5+ {[%clk 0:01:37.2]} 39... Kh7 {[%clk
0:01:20.9]} 40. Qf5+ {[%clk 0:01:34.8]} 40... Kg7 {[%clk 0:01:21.2]} 41. Qg5+
{[%clk 0:01:35.7]} 41... Kf8 {[%clk 0:01:22.1]} 42. Qh6+ {[%clk 0:01:36.3]}
42... Ke7 {[%clk 0:01:23.6]} 43. Qg5+ {[%clk 0:01:26.7]} 43... f6 {[%clk
0:01:22.7]} 44. Qg7+ {[%clk 0:01:22.6]} 44... Ke6 {[%clk 0:01:22.6]} 45. Qc7
{[%clk 0:01:11.8]} 45... Qd4+ {[%clk 0:01:17.7]} 46. Kg2 {[%clk 0:01:13]} 46...
Qd2+ {[%clk 0:01:15.1]} 47. Kg1 {[%clk 0:01:12.2]} 47... Qd6 {[%clk 0:00:51.7]}
48. Qh7 {[%clk 0:01:05.9]} 48... Qe5 {[%clk 0:00:32.2]} 49. Bc6 {[%clk
0:01:03.3]} 49... Rd8 {[%clk 0:00:32.8]} 50. b6 {[%clk 0:00:26]} 50... Bg4
{[%clk 0:00:30.2]} 51. Qb1 {[%clk 0:00:19.6]} 51... Rd1+ {[%clk 0:00:30.9]} 52.
Qxd1 {[%clk 0:00:19.9]} 52... Bxd1 {[%clk 0:00:32.8]} 53. b7 {[%clk 0:00:21.7]}
53... Qc7 {[%clk 0:00:28]} 54. a5 {[%clk 0:00:22.1]} 54... c4 {[%clk 0:00:24.8]}
55. a6 {[%clk 0:00:23.3]} 55... Qb6+ {[%clk 0:00:24.6]} 56. Kf1 {[%clk
0:00:23.5]} 56... c3 {[%clk 0:00:26]} 57. Ke1 {[%clk 0:00:24.4]} 57... Bc2
{[%clk 0:00:25]} 58. h4 {[%clk 0:00:21.7]} 58... Kd6 {[%clk 0:00:25.7]} 59. Bf3
{[%clk 0:00:22]} 59... Kc7 {[%clk 0:00:26]} 60. h5 {[%clk 0:00:23]} 60... Qxa6
{[%clk 0:00:26.6]} 61. h6 {[%clk 0:00:24.3]} 61... Qe6+ {[%clk 0:00:26.5]} 62.
Kf2 {[%clk 0:00:24.7]} 62... Qh3 {[%clk 0:00:28.1]} 63. Ke3 {[%clk 0:00:23.9]}
63... Qxh6+ {[%clk 0:00:28.8]} 64. Kd4 {[%clk 0:00:25.8]} 64... Qd2+ {[%clk
0:00:29.6]} 0-1